bitfinex-derivatives/quotes_ETHF0:USTF0_20260214
["timestamp","ask_amount","ask_price","bid_price","bid_amount"]
[1771094080422,1.19257453,2086.3,2085.1,1.43463256]
[1771094080625,1.23171732,2086.1,2085.1,1.43463256]
[1771094081426,1.23171732,2086.1,2085.1,0.2399]
[1771094081820,1.23171732,2086.1,2084.8,1.25606706]
[1771094082827,1.25367613,2085.9,2084.8,0.00556112]
[1771094083028,1.25367613,2085.7,2084.8,0.00556112]
[1771094086226,1.25367613,2085.7,2084.8,1.22707867]
[1771094088719,1.25367613,2085.7,2085.0,1.22151755]
[1771094092434,1.25367613,2085.7,2084.9,1.46143755]
[1771094095730,1.25367613,2085.7,2084.8,1.22707867]
[1771094111046,1.25367613,2085.5,2084.8,1.22707867]
[1771094122654,1.25367613,2085.5,2084.4,1.43176999]
[1771094122655,1.17297085,2085.1,2084.2,1.19871044]
[1771094122956,1.43176999,2084.8,2084.2,1.19871044]
[1771094123166,1.17297085,2084.7,2083.9,1.19871044]
[1771094123563,1.17297085,2084.7,2083.9,2.63048043]
[1771094123762,1.17297085,2084.7,2084.0,1.19871044]
[1771094124263,1.17794534,2084.7,2084.0,1.20421297]
[1771094125166,0.23987,2085.4,2084.5,1.19871044]
[1771094125371,1.17297085,2085.2,2084.5,1.19871044]
[1771094126366,1.17653348,2085.2,2084.5,1.19871044]
[1771094126669,1.17297085,2085.1,2084.3,1.19871044]
[1771094138976,1.17297085,2085.0,2084.3,1.19871044]
[1771094141075,2.73201423,2085.2,2084.3,1.19871044]
[1771094141381,6.71401423,2085.2,2084.3,1.19871044]
[1771094141576,5.28224424,2085.2,2084.3,1.19871044]
[1771094141776,1.29668161,2085.1,2084.3,1.19871044]
[1771094150378,5.20095751,2085.2,2084.3,1.19871044]
[1771094150584,5.20095751,2085.2,2084.5,1.21396708]
[1771094151182,0.00356263,2085.2,2084.7,1.21396708]
[1771094157892,1.21539488,2085.6,2084.9,1.21396708]
[1771094158991,1.21926066,2085.6,2084.9,1.21396708]
[1771094159187,1.21539488,2085.5,2084.9,1.21396708]
[1771094159398,1.21539488,2085.3,2084.7,1.21396708]
[1771094161494,1.21539488,2085.5,2084.7,1.21396708]
[1771094161692,0.00386578,2085.6,2085.1,1.21396708]
[1771094162497,1.21539488,2085.7,2084.8,0.23993]
[1771094162498,1.21539488,2085.9,2085.3,1.21396708]
[1771094162686,1.21539488,2086.3,2085.5,1.21396708]
[1771094163591,1.21991565,2086.3,2085.5,1.21957168]
[1771094170394,1.21991565,2086.3,2085.5,0.0056046]
[1771094171100,1.21991565,2086.3,2085.5,1.21957168]
[1771094171500,1.21991565,2086.3,2085.2,1.21396708]
[1771094172498,1.21991565,2086.3,2085.2,1.21917023]
[1771094172702,5.19539488,2086.2,2085.2,1.45905023]
[1771094173093,1.24258922,2086.1,2085.2,1.45905023]
[1771094179804,1.24258922,2086.1,2085.2,1.21917023]
[1771094182809,1.24258922,2086.0,2085.2,0.00520315]
[1771094183512,1.24258922,2085.7,2084.6,1.50935583]
[1771094183708,1.24258922,2085.5,2084.6,1.50935583]
[1771094183916,1.24258922,2085.5,2084.6,1.26940583]
[1771094184713,1.24258922,2085.5,2084.6,1.27550837]
[1771094187516,1.24258922,2085.5,2084.6,0.00610254]
[1771094187517,2.67351741,2085.5,2084.6,0.00610254]
[1771094187720,1.24258922,2085.4,2084.6,0.00610254]
[1771094188518,1.24258922,2085.2,2084.3,1.26940583]
[1771094189514,1.24258922,2085.2,2084.3,1.27414669]
[1771094190218,1.24258922,2085.2,2084.3,0.00474086]
[1771094190617,1.24258922,2085.1,2084.3,0.00474086]
[1771094190817,1.43092819,2085.2,2084.3,0.00474086]
[1771094190818,1.24258922,2084.9,2084.3,0.00474086]
[1771094194323,1.24258922,2084.9,2084.2,1.26940583]
[1771094195325,1.24258922,2084.9,2084.2,1.27408204]
[1771094196418,1.24258922,2084.8,2084.2,1.27408204]
[1771094196618,1.24878925,2084.8,2084.2,1.27408204]
[1771094208423,1.24878925,2084.8,2083.4,5.65201819]
[1771094208424,1.24878925,2084.8,2084.0,1.23585311]
[1771094209631,1.24878925,2084.8,2084.0,1.23965096]
[1771094212136,1.24878925,2084.8,2084.0,0.00379785]
[1771094212335,1.24878925,2084.8,2083.7,1.23585311]
[1771094212336,1.28325397,2084.6,2083.7,1.23585311]
[1771094213433,1.28325397,2084.6,2083.7,1.24177295]
[1771094215039,1.28325397,2084.5,2083.7,1.24177295]
[1771094222041,1.28325397,2084.3,2083.7,1.24177295]
[1771094222835,1.28325397,2084.3,2083.7,0.00591984]
[1771094223238,1.28325397,2084.3,2083.4,1.23585311]
[1771094223842,7.04231026,2084.2,2083.1,1.23585311]
[1771094224043,1.28325397,2084.0,2083.1,1.23585311]
[1771094224342,1.28325397,2083.9,2083.1,1.2403197]
[1771094227042,1.28325397,2083.8,2083.1,1.2403197]
[1771094227636,1.28325397,2083.8,2083.1,0.00446659]
[1771094227943,1.28325397,2083.6,2083.1,0.00446659]
[1771094228446,1.28325397,2083.6,2083.1,1.2403197]
[1771094231247,1.28325397,2083.6,2083.1,0.00446659]
[1771094231440,1.28325397,2083.6,2082.9,1.23585311]
[1771094232249,1.28325397,2083.4,2082.9,1.23585311]
[1771094232450,1.28325397,2083.4,2082.7,1.23585311]
[1771094233648,1.18711574,2083.2,2082.7,1.23951697]
[1771094233946,1.19150571,2083.2,2082.7,1.23951697]
[1771094234150,1.19150571,2083.2,2082.7,1.2790303]
[1771094234349,1.18711574,2083.0,2082.5,1.27536644]
[1771094235352,0.00438997,2083.2,2082.5,2.71316745]
[1771094235653,3.983,2083.4,2082.8,1.27536644]
[1771094236651,3.9886604,2083.4,2082.8,1.27536644]
[1771094237455,1.18711574,2083.7,2083.1,1.27536644]
[1771094238452,1.19073836,2083.7,2083.1,1.27536644]
[1771094240244,0.00362262,2083.7,2083.1,1.27536644]
[1771094240851,1.18711574,2084.0,2083.1,1.27536644]
[1771094241251,1.18711574,2084.2,2083.1,1.27536644]
[1771094241753,1.1917196,2084.2,2083.1,1.27536644]
[1771094243153,1.1917196,2084.2,2083.1,1.51548644]
[1771094243853,0.00460386,2084.2,2083.1,1.51548644]
[1771094245959,1.1917196,2084.2,2083.1,1.51548644]
[1771094248756,0.00460386,2084.2,2083.1,3.61297916]
[1771094248953,1.18711574,2084.7,2083.6,1.27536644]
[1771094249652,1.18711574,2084.7,2083.8,1.27536644]
[1771094250252,1.19284489,2084.7,2083.8,1.27536644]
[1771094250550,0.00572915,2084.7,2083.8,1.27536644]
[1771094250754,0.00572915,2084.7,2084.0,1.27536644]
[1771094251061,0.00572915,2084.7,2084.0,1.28036123]
[1771094251760,1.18711574,2085.7,2084.2,1.27536644]
[1771094251959,1.18711574,2085.5,2084.2,1.27536644]
[1771094252760,1.19199071,2085.5,2084.2,1.27536644]
[1771094254259,1.19199071,2085.5,2084.4,1.27536644]
[1771094255659,1.19199071,2085.5,2084.6,1.27536644]
[1771094261865,1.19199071,2085.5,2084.8,1.25385527]
[1771094268076,1.19199071,2085.5,2085.0,1.19340872]
[1771094268275,0.00487497,2085.5,2085.0,1.19340872]
[1771094269167,1.21892127,2085.5,2085.0,1.19340872]
[1771094272871,1.21892127,2085.5,2084.8,1.19340872]
[1771094276579,0.00487497,2085.5,2085.0,1.19340872]
[1771094277081,1.2140463,2085.7,2085.0,1.19340872]
[1771094278076,1.21794453,2085.7,2085.0,1.19340872]
[1771094280578,1.21794453,2085.7,2084.9,1.67185853]
[1771094280779,1.2140463,2085.5,2084.7,1.19340872]
[1771094282981,1.2140463,2085.5,2084.4,0.23998]
[1771094283177,1.2140463,2085.5,2084.4,1.43338872]
[1771094295592,1.2140463,2085.5,2084.4,1.19340872]
[1771094295793,0.00389823,2085.7,2084.4,1.19340872]
[1771094295794,1.15852739,2085.3,2084.4,1.19340872]
[1771094298290,1.15852739,2085.3,2084.2,1.16142197]
[1771094298696,1.15852739,2085.1,2084.0,1.16641676]
[1771094298890,1.15852739,2084.9,2084.0,0.00499479]
[1771094300998,1.15852739,2084.9,2084.0,1.16641676]
[1771094301993,1.15852739,2084.9,2084.0,0.00499479]
[1771094305100,1.15852739,2084.9,2083.7,1.16142197]
[1771094305504,1.15852739,2084.6,2083.5,1.16142197]
[1771094305999,1.15852739,2084.6,2083.0,1.16142197]
[1771094306300,1.15852739,2084.6,2083.0,1.16508963]
[1771094307298,1.15852739,2084.6,2083.2,1.16142197]
[1771094325318,1.15695445,2084.4,2083.2,1.16142197]
[1771094330224,1.15695445,2084.2,2083.2,1.16142197]
[1771094330425,1.16039174,2084.2,2083.2,1.16142197]
[1771094331927,0.00343729,2084.2,2083.6,1.18256389]
[1771094332522,1.15695445,2084.4,2083.6,1.18256389]
[1771094333525,1.16144377,2084.4,2083.6,1.18256389]
[1771094347234,0.00448932,2084.4,2083.6,1.18256389]
[1771094349039,1.16144377,2084.4,2084.0,1.18256389]
[1771094349535,0.00448932,2084.4,2084.0,0.68256389]
[1771094352135,3.983,2084.6,2084.2,1.18256389]
[1771094352435,5.13995445,2084.6,2084.2,1.18256389]
[1771094353234,5.14499614,2084.6,2084.2,1.18256389]
[1771094353535,1.14199227,2084.5,2084.2,1.18256389]
[1771094356129,5.13003396,2084.6,2084.2,1.18256389]
[1771094358040,1.14199227,2084.5,2084.2,1.18256389]
[1771094359740,5.13003396,2084.6,2084.2,1.18256389]
[1771094361737,1.6728145,2085.4,2084.4,1.16604675]
[1771094362041,1.14199227,2085.2,2084.4,1.16604675]
[1771094362241,1.14199227,2085.0,2084.4,1.16604675]
[1771094362739,1.14644136,2085.0,2084.4,1.16604675]
[1771094363536,1.14644136,2085.0,2084.6,1.16604675]
[1771094363737,1.14644136,2085.0,2084.6,1.17045097]
[1771094363937,1.14644136,2085.0,2084.6,0.67125097]
[1771094365943,1.14644136,2085.0,2084.6,0.00440422]
[1771094367345,1.14644136,2085.0,2083.8,0.24004]
[1771094367548,1.14199227,2084.9,2084.0,1.16604675]
[1771094368546,1.14199227,2084.9,2084.0,1.17095827]
[1771094370047,1.14199227,2084.9,2084.2,1.16604675]
[1771094384459,1.14199227,2084.9,2084.1,1.4329445]
[1771094384653,1.1188374,2084.6,2084.0,0.00491152]
[1771094387450,1.1188374,2084.6,2084.0,1.17123684]
[1771094389061,1.1188374,2084.6,2084.2,1.16632532]
[1771094392162,1.1188374,2084.4,2083.7,1.16632532]
[1771094393359,1.1188374,2084.4,2083.7,1.17196988]
[1771094397362,3.982,2084.9,2083.7,1.17196988]
[1771094397561,1.1188374,2085.2,2084.8,1.16632532]
[1771094397764,0.16249244,2085.7,2085.0,1.16632532]
[1771094398161,2.3992,2085.4,2085.0,1.16632532]
[1771094398464,0.16249244,2085.5,2085.0,1.16632532]
[1771094398658,2.3992,2085.3,2085.0,1.16632532]
[1771094398854,2.56402604,2085.3,2084.8,1.16632532]
[1771094399058,0.16482604,2085.3,2084.8,1.16632532]
[1771094399259,0.19569804,2085.2,2084.8,1.16632532]
[1771094399463,0.19569804,2085.2,2084.6,1.16632532]
[1771094399863,0.26265358,2085.1,2084.6,1.16632532]
[1771094400362,2.66420578,2085.0,2084.6,1.16632532]
[1771094400558,0.26500578,2085.0,2084.6,1.16632532]
[1771094400761,2.66422187,2084.8,2084.2,1.16632532]
[1771094400965,0.26502187,2084.8,2084.2,1.16632532]
[1771094401366,0.26737528,2084.6,2084.2,1.16632532]
[1771094402960,0.26680056,2084.4,2083.9,1.16632532]
[1771094404267,0.27570194,2085.0,2083.9,1.16632532]
[1771094404467,0.27797305,2084.7,2083.9,1.16632532]
[1771094405565,2.67717305,2084.7,2083.9,1.16632532]
[1771094406269,0.27797305,2084.7,2083.9,1.16632532]
[1771094407163,0.30368235,2085.0,2083.9,1.16632532]
[1771094407368,0.30585039,2084.9,2083.9,1.16632532]
[1771094407870,0.31714869,2084.7,2083.9,1.16632532]
[1771094408472,0.31933465,2084.5,2083.9,1.16632532]
[1771094408969,3.982,2085.0,2083.9,1.16632532]
[1771094408970,2.71853465,2084.4,2083.9,1.16632532]
[1771094409169,0.31933465,2084.4,2083.9,1.16632532]
[1771094409363,2.71853465,2084.4,2083.9,1.16632532]
[1771094410371,0.31739886,2084.3,2083.9,1.16632532]
[1771094411069,0.31739886,2084.1,2083.8,1.16632532]
[1771094411262,0.31946622,2084.3,2083.8,1.16632532]
[1771094412073,2.70552921,2084.2,2083.8,1.16632532]
[1771094412273,0.30632921,2084.2,2083.8,1.16632532]
[1771094412474,2.3992,2084.1,2083.8,1.16632532]
[1771094415484,2.3992,2084.0,2083.8,1.16632532]
[1771094415777,0.00569161,2084.0,2083.8,1.16632532]
[1771094415973,2.40489161,2084.0,2083.8,1.16632532]
[1771094416173,0.31967873,2084.0,2083.7,0.00564456]
[1771094416373,2.3992,2083.9,2083.6,1.1708957]
[1771094416586,0.31967873,2084.0,2082.9,1.1708957]
[1771094417278,0.00569161,2084.0,2082.9,1.17643127]
[1771094417876,0.00569161,2084.0,2082.9,11.18716793]
[1771094418273,0.00569161,2084.0,2083.0,1.1708957]
[1771094419776,0.00569161,2084.0,2083.2,1.1708957]
[1771094421582,1.14622476,2083.9,2083.2,1.1708957]
[1771094422281,3.54542476,2083.9,2083.2,1.1708957]
[1771094422483,1.14622476,2083.8,2083.2,1.1708957]
[1771094423084,2.3992,2083.6,2083.2,1.1708957]
[1771094423290,1.14622476,2083.6,2083.1,1.1708957]
[1771094423685,2.3992,2083.4,2083.1,1.1708957]
[1771094423879,1.14622476,2083.4,2083.0,1.1708957]
[1771094424078,3.54542476,2083.4,2083.0,1.1708957]
[1771094424274,0.00569161,2084.0,2083.0,1.4110257]
[1771094424275,1.15191637,2084.0,2083.0,1.4110257]
[1771094424482,0.00569161,2084.0,2083.0,1.4110257]
[1771094424785,0.23993,2084.9,2083.0,1.4110257]
[1771094424786,1.14622476,2084.3,2083.0,1.4110257]
[1771094425381,3.983,2084.8,2083.6,1.1708957]
[1771094425582,1.14622476,2084.7,2083.6,1.1708957]
[1771094425781,1.14622476,2084.5,2083.6,1.1708957]
[1771094426183,3.54542476,2084.4,2083.6,1.1708957]
[1771094426386,1.14622476,2084.4,2083.6,1.1708957]
[1771094426781,1.14622476,2084.2,2083.6,1.1708957]
[1771094427189,2.3992,2084.1,2083.6,1.1708957]
[1771094427690,1.14622476,2084.2,2083.6,1.1708957]
[1771094428192,1.14622476,2084.1,2083.6,1.1708957]
[1771094428795,2.3992,2084.0,2083.6,1.1708957]
[1771094429183,2.3992,2083.9,2083.6,1.1708957]
[1771094429387,1.14622476,2084.1,2083.6,1.1708957]
[1771094429892,2.3992,2084.0,2083.6,1.1708957]
[1771094430294,2.3992,2083.9,2083.6,1.1708957]
[1771094430596,1.14622476,2083.9,2083.6,1.1708957]
[1771094430800,2.3992,2083.7,2083.5,1.35414117]
[1771094431099,1.14622476,2083.9,2083.5,1.35414117]
[1771094431496,1.14622476,2084.6,2083.5,1.35414117]
[1771094432601,1.14622476,2084.6,2083.3,1.12610102]
[1771094437697,1.14622476,2084.6,2083.4,0.2401]
[1771094437904,1.14622476,2084.6,2083.5,1.1285239]
[1771094438202,1.14622476,2084.6,2083.7,1.1285239]
[1771094439501,1.14622476,2084.6,2083.9,1.1708957]
[1771094440401,1.14622476,2084.6,2083.7,1.1708957]
[1771094441503,1.14622476,2084.6,2083.6,1.16427929]
[1771094455120,1.14622476,2084.6,2083.7,0.24006]
[1771094455421,1.14622476,2084.6,2083.8,1.20768635]
[1771094461018,0.00452921,2084.7,2083.8,1.20768635]
[1771094461416,1.17102638,2084.7,2083.8,1.20768635]
[1771094465522,1.17102638,2084.7,2083.7,1.44774635]
[1771094470225,1.17102638,2084.7,2083.7,1.20768635]
[1771094470523,1.17102638,2084.7,2083.5,1.20768635]
[1771094475233,1.25928431,2084.5,2083.5,1.20768635]
[1771094475730,1.25928431,2084.5,2083.4,1.25371715]
[1771094476833,1.25928431,2084.3,2083.2,1.49382715]
[1771094486943,1.25928431,2084.3,2083.5,1.25371715]
[1771094488333,1.25928431,2084.2,2083.3,1.25371715]
[1771094493146,1.25928431,2084.2,2083.5,1.25371715]
[1771094495647,1.25928431,2084.2,2083.3,1.25371715]
[1771094495844,1.25928431,2084.2,2083.1,1.25371715]
[1771094496048,1.25928431,2083.8,2083.0,1.25371715]
[1771094504952,1.21676541,2084.0,2083.4,1.31108795]
[1771094505159,1.21676541,2084.0,2083.6,1.31108795]
[1771094505455,1.21676541,2084.5,2083.6,1.31108795]
[1771094505653,1.21676541,2084.5,2083.8,1.31108795]
[1771094507254,1.21676541,2084.6,2084.0,1.31108795]
[1771094517769,1.21676541,2084.6,2083.9,1.43359465]
[1771094517964,1.21676541,2084.6,2083.9,2.7446826]
[1771094518361,1.21676541,2084.6,2084.0,1.31108795]
[1771094521973,1.21676541,2084.6,2083.8,1.31108795]
[1771094522179,1.21676541,2084.4,2083.6,1.31108795]
[1771094522672,1.21676541,2084.4,2083.8,1.31108795]
[1771094526270,3.98752921,2084.7,2083.8,1.31108795]
[1771094526478,1.21676541,2084.6,2084.0,1.31108795]
[1771094539794,3.98752921,2084.7,2084.0,1.31108795]
[1771094539988,5.31563193,2084.7,2084.0,1.31108795]
[1771094540388,0.00452921,2084.7,2084.0,1.31108795]
[1771094540587,1.32810272,2085.0,2084.3,1.33422815]
[1771094540888,1.32810272,2085.3,2084.3,1.33422815]
[1771094541691,1.33432405,2085.3,2084.3,1.33422815]
[1771094542096,1.33432405,2085.3,2084.5,1.33422815]
[1771094542296,1.33432405,2085.3,2084.5,1.34001943]
[1771094548391,0.00622133,2085.3,2084.7,1.33422815]
[1771094551402,1.33432405,2085.3,2084.5,0.00579128]
[1771094555405,1.33432405,2085.3,2084.0,1.57424815]
[1771094555908,1.33432405,2085.3,2084.1,1.33422815]
[1771094556504,1.33432405,2085.3,2084.1,1.33874974]
[1771094557210,1.33432405,2085.3,2084.3,1.33422815]
[1771094557799,1.33432405,2085.3,2084.4,1.33422815]
[1771094570227,1.33432405,2085.3,2084.3,1.30482024]
[1771094576925,1.39642984,2085.1,2084.3,1.30482024]
[1771094577934,1.39642984,2085.1,2084.1,1.30934183]
[1771094581132,1.39642984,2085.0,2084.1,1.30934183]
[1771094581434,1.39642984,2084.9,2084.1,1.30934183]
[1771094583135,1.39642984,2085.2,2084.1,1.30934183]
[1771094587036,1.39642984,2085.0,2084.1,1.30934183]
[1771094587237,1.39642984,2085.0,2084.1,1.54935183]
[1771094589143,0.00622133,2085.3,2084.4,1.30482024]
[1771094589340,1.40265117,2085.3,2084.4,1.30482024]
[1771094590132,1.39642984,2085.8,2084.6,1.30482024]
[1771094590340,1.39642984,2085.8,2084.7,1.30482024]
[1771094590846,1.39642984,2085.8,2084.8,1.43165818]
[1771094591138,1.40011932,2085.8,2084.9,1.30482024]
[1771094591538,1.39642984,2085.4,2084.5,1.30482024]
[1771094596135,1.39642984,2085.4,2084.6,1.31816569]
[1771094596340,1.39642984,2085.4,2084.8,1.31816569]
[1771094603947,1.39642984,2085.4,2084.6,1.31816569]
[1771094606351,1.39642984,2085.4,2084.9,1.31816569]
[1771094609147,1.39642984,2085.4,2084.7,1.31816569]
[1771094624863,1.39642984,2085.4,2084.9,1.38196013]
[1771094625264,1.35134745,2085.6,2084.9,1.38196013]
[1771094625465,1.35134745,2085.6,2085.1,1.38196013]
[1771094631762,1.35134745,2085.6,2084.9,1.38196013]
[1771094637970,1.35134745,2085.6,2084.7,1.38196013]
[1771094641777,1.35134745,2085.4,2084.7,1.38196013]
[1771094645480,1.35134745,2085.4,2084.8,1.43165818]
[1771094645685,1.35134745,2085.4,2084.9,1.38196013]
[1771094647193,1.35134745,2085.6,2084.9,1.38196013]
[1771094647687,1.35134745,2085.6,2084.5,0.23996]
[1771094647688,1.35134745,2085.6,2085.1,1.38196013]
[1771094652093,1.35134745,2085.6,2084.8,1.38196013]
[1771094653697,5.23006941,2085.7,2085.0,1.34927509]
[1771094654095,1.24906941,2085.6,2085.0,1.34927509]
[1771094657197,0.00368948,2085.8,2085.0,1.34927509]
[1771094665203,1.25275889,2085.8,2085.0,1.34927509]
[1771094667798,0.00368948,2085.8,2085.0,1.34927509]
[1771094671407,0.00368948,2085.8,2085.2,1.34927509]
[1771094686613,1.24169228,2085.8,2085.2,1.34927509]
[1771094692219,1.24169228,2085.8,2085.1,1.523262]
[1771094697024,1.24169228,2085.8,2084.9,10.01073666]
[1771094697222,1.24169228,2085.8,2084.3,15.0576079]
[1771094697223,1.2380028,2085.1,2084.0,1.283362]
[1771094697417,1.2380028,2084.9,2083.6,1.283362]
[1771094697617,1.2380028,2084.7,2083.6,1.283362]
[1771094697819,5.88917288,2084.6,2083.6,1.283362]
[1771094698028,1.2380028,2084.5,2083.6,1.283362]
[1771094698431,1.2380028,2084.5,2083.6,1.2877099]
[1771094699924,1.2380028,2084.5,2083.8,1.61911252]
[1771094700119,1.2380028,2084.5,2083.9,1.283362]
[1771094700316,1.2380028,2084.5,2083.7,1.283362]
[1771094700523,1.2380028,2084.5,2083.6,0.0043479]
[1771094700722,1.2380028,2084.5,2083.6,1.2877099]
[1771094701827,1.2380028,2084.5,2083.6,0.0043479]
[1771094702327,1.2380028,2084.5,2083.6,1.2877099]
[1771094703718,1.2380028,2084.5,2083.7,1.283362]
[1771094704231,1.2380028,2084.5,2083.8,1.283362]
[1771094705130,1.2380028,2084.5,2083.9,1.283362]
[1771094707325,1.2380028,2084.5,2084.0,1.283362]
[1771094708332,1.2380028,2084.5,2084.1,1.283362]
[1771094709634,1.2380028,2084.9,2084.2,1.283362]
[1771094710931,1.2380028,2084.9,2084.4,1.283362]
[1771094712936,1.2380028,2084.9,2084.5,1.29409769]
[1771094713335,1.2380028,2084.9,2084.5,2.91321021]
[1771094714428,1.2380028,2084.9,2084.5,1.29409769]
[1771094714932,1.2380028,2084.9,2084.6,1.61911252]
[1771094715234,1.2380028,2084.9,2084.6,1.11911252]
[1771094717639,1.2380028,2084.9,2084.4,1.29409769]
[1771094718343,1.2380028,2084.9,2084.6,1.11911252]
[1771094718538,1.2380028,2084.9,2084.6,2.41321021]
[1771094718838,3.982,2085.1,2084.7,2.41321021]
[1771094719141,5.2594907,2085.1,2084.7,1.29409769]
[1771094719632,5.2594907,2085.1,2084.8,2.41321021]
[1771094719830,5.2594907,2085.1,2084.8,1.29409769]
[1771094720134,5.2594907,2085.1,2084.8,1.11911252]
[1771094720135,1.2774907,2085.0,2084.8,1.11911252]
[1771094720330,3.982,2085.1,2084.8,2.41321021]
[1771094720538,3.982,2085.1,2084.9,1.29409769]
[1771094721037,3.982,2085.1,2084.9,0.79409769]
[1771094721232,3.982,2085.1,2085.0,1.11911252]
[1771094721434,4.95713051,2085.1,2085.0,1.11911252]
[1771094722535,4.95713051,2085.1,2085.0,0.61911252]
[1771094722937,0.35370607,2085.0,2084.4,1.29409769]
[1771094724039,4.34203491,2085.1,2084.4,1.29409769]
[1771094724228,4.34203491,2085.1,2083.9,0.24003]
[1771094724229,0.36003491,2085.4,2084.6,1.29409769]
[1771094726236,6.5619148,2085.3,2084.6,1.29409769]
[1771094726434,0.36519683,2085.3,2084.6,1.29409769]
[1771094727837,0.3673522,2085.1,2084.2,1.29409769]
[1771094728241,0.3673522,2085.0,2084.2,1.29409769]
[1771094729342,0.37066371,2084.8,2084.2,1.29409769]
[1771094730638,0.35281535,2084.6,2083.9,1.29409769]
[1771094732447,0.36614784,2084.8,2083.9,1.29409769]
[1771094732646,0.36614784,2084.8,2083.6,0.0043479]
[1771094732647,6.48301452,2084.7,2084.1,1.29409769]
[1771094732847,0.36614784,2084.8,2084.1,1.29409769]
[1771094733049,6.46643793,2084.7,2084.1,1.29409769]
[1771094733347,0.36614784,2084.8,2084.1,1.29409769]
[1771094733548,6.83868313,2084.7,2084.1,1.29409769]
[1771094733750,0.37095742,2084.7,2084.1,1.29409769]
[1771094735943,3.982,2084.9,2084.1,1.29409769]
[1771094736137,6.46892593,2084.8,2084.1,1.29409769]
[1771094736343,0.3770855,2085.1,2084.1,1.29409769]
[1771094736545,10.83164921,2085.0,2084.1,1.29409769]
[1771094736750,6.46954356,2084.9,2084.1,1.29409769]
[1771094736951,0.38010565,2084.9,2084.1,1.29409769]
[1771094738359,0.38010565,2084.9,2084.3,1.29409769]
[1771094739352,4.36861789,2085.0,2084.3,1.29409769]
[1771094739554,3.982,2085.0,2084.5,1.29409769]
[1771094741554,0.40328567,2085.3,2084.5,1.29409769]
[1771094749358,0.42335053,2085.0,2084.5,1.29409769]
[1771094749557,0.42335053,2085.0,2084.5,0.79409769]
[1771094750961,0.42335053,2085.0,2084.3,1.39750307]
[1771094751657,0.92707608,2084.8,2084.3,1.39750307]
[1771094752055,0.92707608,2084.8,2083.8,0.24005]
[1771094752357,0.92998031,2084.7,2083.9,1.39750307]
[1771094756359,3.982,2084.8,2083.9,2.8300326]
[1771094756565,3.982,2084.8,2084.0,1.39750307]
[1771094756865,4.91772747,2084.9,2084.0,1.39750307]
[1771094757070,0.93572747,2084.8,2084.0,1.39750307]
[1771094757462,4.92087477,2084.9,2084.2,1.39750307]
[1771094758156,0.93887477,2084.9,2084.2,1.39750307]
[1771094759567,3.982,2085.0,2084.2,1.39750307]
[1771094759762,4.93043853,2085.0,2084.2,1.39750307]
[1771094760265,0.94843853,2084.8,2084.2,1.39750307]
[1771094760958,0.95101802,2084.6,2083.9,1.39750307]
[1771094761363,0.95101802,2084.4,2083.9,1.39750307]
[1771094761563,1.2970694,2084.2,2083.7,1.39750307]
[1771094761869,1.30141123,2084.2,2083.7,1.39750307]
[1771094764868,1.2970694,2084.0,2083.4,1.39750307]
[1771094765870,1.2970694,2084.0,2083.4,1.40346574]
[1771094777286,1.2970694,2084.0,2083.4,0.90346574]
[1771094781393,1.2970694,2084.0,2083.4,0.00596267]
[1771094781691,1.2970694,2084.0,2083.2,1.3715854]
[1771094782592,1.2970694,2084.0,2083.2,1.37495129]
[1771094784296,1.2970694,2084.0,2083.2,0.00336589]
[1771094784688,1.2970694,2084.0,2083.2,1.37495129]
[1771094788300,1.2970694,2084.0,2083.2,0.00336589]
[1771094788497,7.4616758,2083.9,2083.2,0.00336589]
[1771094788801,1.40532423,2083.8,2083.2,0.00336589]
[1771094789101,1.40532423,2083.8,2083.0,0.87495129]
[1771094790093,1.40532423,2083.8,2083.0,0.8786669]
[1771094790700,1.40532423,2083.6,2083.0,0.8786669]
[1771094791804,1.40532423,2084.1,2083.0,0.8786669]
[1771094792002,1.40532423,2083.9,2083.0,0.8786669]
[1771094796600,3.982,2084.0,2083.0,0.8786669]
[1771094796904,5.38732423,2084.0,2083.0,0.8786669]
[1771094797407,1.40532423,2084.0,2083.0,0.8786669]
[1771094799000,1.40532423,2084.1,2083.0,0.8786669]
[1771094807711,1.40532423,2084.1,2083.2,1.40590609]
[1771094808006,1.40532423,2084.1,2083.3,1.40590609]
[1771094808207,0.00434183,2084.2,2083.5,2.83981442]
[1771094808402,1.46043277,2084.3,2083.6,1.40590609]
[1771094808602,1.46043277,2084.5,2083.9,1.40590609]
[1771094809307,1.4641423,2084.5,2083.9,1.40590609]
[1771094810709,0.00370953,2084.5,2083.9,1.40590609]
[1771094812309,1.46043277,2085.1,2084.1,1.40590609]
[1771094813111,1.46658665,2085.1,2084.1,1.40590609]
[1771094816715,1.46658665,2085.1,2084.2,1.40590609]
[1771094817312,1.46658665,2085.1,2084.4,1.40590609]
[1771094818607,1.46658665,2085.1,2084.3,0.23999]
[1771094818813,1.46658665,2085.1,2084.3,1.64589609]
[1771094820321,1.46658665,2085.1,2084.3,1.40590609]
[1771094822212,1.46043277,2085.4,2084.5,1.40590609]
[1771094823319,1.46631125,2085.4,2084.5,1.41132294]
[1771094824720,0.00587848,2085.4,2084.5,1.41132294]
[1771094825823,0.00587848,2085.4,2084.7,1.40590609]
[1771094828927,1.46043277,2085.9,2085.1,1.40590609]
[1771094829926,1.46661601,2085.9,2085.1,1.40590609]
[1771094834729,1.46661601,2085.9,2084.9,1.50777578]
[1771094838031,1.53941876,2085.7,2084.9,1.50777578]
[1771094840033,1.53941876,2085.7,2084.8,0.23993]
[1771094840233,1.53941876,2085.7,2084.8,1.74770578]
[1771094843736,1.53941876,2085.7,2084.8,1.50777578]
[1771094845436,1.53941876,2085.7,2084.9,1.50777578]
[1771094845643,1.53941876,2085.7,2085.1,1.50777578]
[1771094846637,1.53941876,2085.8,2085.1,1.50777578]
[1771094849640,1.54342917,2085.8,2085.1,1.50777578]
[1771094852237,0.00401041,2085.8,2085.1,1.50777578]
[1771094852841,1.54342917,2085.8,2085.1,1.50777578]
[1771094855340,1.54342917,2085.8,2084.9,1.50777578]
[1771094859549,1.53941876,2085.6,2084.9,1.50777578]
[1771094862350,1.54961581,2085.8,2085.1,1.5137607]
[1771094869847,1.54961581,2085.8,2084.8,1.43151385]
[1771094869848,1.46258435,2085.6,2084.9,1.58196253]
[1771094879175,3.981,2085.7,2084.9,1.58196253]
[1771094879672,5.44358435,2085.7,2084.9,1.58196253]
[1771094879876,1.46258435,2085.6,2084.9,1.58196253]
[1771094880674,0.00401041,2085.8,2084.9,1.58196253]
[1771094880876,1.46659476,2085.8,2084.9,1.58196253]
[1771094882675,0.00401041,2085.8,2085.3,1.58196253]
[1771094882974,1.46659476,2085.8,2085.3,1.58196253]
[1771094887173,0.00401041,2085.8,2085.3,1.58196253]
[1771094888978,0.00401041,2085.8,2085.4,1.58196253]
[1771094889474,1.46258435,2086.0,2085.6,1.58196253]
[1771094889676,1.46258435,2086.0,2085.5,1.58196253]
[1771094890477,1.4679666,2086.0,2085.5,1.58196253]
[1771094894185,0.00538225,2086.0,2085.5,1.58196253]
[1771094894479,0.00538225,2086.0,2085.6,1.56424154]